bitfinex/quotes_SOLUSD_20251118
["timestamp","ask_amount","ask_price","bid_price","bid_amount"]
[1763441288294,0.69,134.43,134.23,9.78882769]
[1763441288639,0.2,134.39,134.3,18.12096]
[1763441288773,0.2,134.39,134.3,28.05194926]
[1763441288976,0.2,134.39,134.38,9.1661182]
[1763441289173,0.2,134.39,134.38,19.29702974]
[1763441289903,0.2,134.39,134.38,9.50820205]
[1763441290203,0.2,134.39,134.35,18.12096]
[1763441290376,0.89,134.39,134.25,9.36604048]
[1763441290579,9.78882769,134.38,134.33,9.36604048]
[1763441290791,9.78882769,134.38,134.2,0.21324235]
[1763441290792,9.36604048,134.37,134.2,0.21324235]
[1763441291103,0.69,134.38,134.34,9.36604048]
[1763441291396,0.2,134.39,134.31,0.14216157]
[1763441291601,0.2,134.39,134.36,9.36604048]
[1763441291985,0.2,134.39,134.33,18.12096]
[1763441291986,0.9,134.39,134.33,18.12096]
[1763441292185,0.9,134.39,134.36,9.36604048]
[1763441292435,0.9,134.39,134.38,19.15486817]
[1763441292436,0.2,134.39,134.38,19.15486817]
[1763441292608,0.2,134.39,134.38,19.29702974]
[1763441292812,0.2,134.39,134.38,27.48700048]
[1763441293040,0.2,134.39,134.25,10.11091943]
[1763441293339,0.14216157,134.38,134.3,9.36604048]
[1763441293542,18.12096,134.35,134.2,18.12096]
[1763441293849,27.48700048,134.35,134.29,9.36604048]
[1763441294042,27.48700048,134.35,134.28,18.12096]
[1763441294210,9.36604048,134.35,134.27,0.14216157]
[1763441294542,27.48700048,134.35,134.3,9.36604048]
[1763441294721,27.48700048,134.35,134.28,18.12096]
[1763441294925,9.36604048,134.34,134.28,27.48700048]
[1763441295432,0.7,134.37,134.18,0.74526755]
[1763441295433,9.36604048,134.3,134.18,0.74526755]
[1763441295642,9.36604048,134.27,134.14,0.74548978]
[1763441295835,9.36604048,134.26,134.2,9.36604048]
[1763441296158,9.36604048,134.25,134.14,0.74548978]
[1763441296354,0.7,134.31,134.14,0.74548978]
[1763441296514,0.7,134.31,134.16,0.14216157]
[1763441296515,9.36604048,134.29,134.16,0.14216157]
[1763441296720,10.06604048,134.31,134.26,9.36604048]
[1763441297026,0.7,134.31,134.26,9.36604048]
[1763441297224,9.36604048,134.31,134.25,18.12096]
[1763441297435,0.7,134.35,134.26,9.93098926]
[1763441297751,10.06604048,134.35,134.29,9.36604048]
[1763441297911,9.78882769,134.33,134.24,0.14216157]
[1763441298116,18.82096,134.34,134.26,9.36604048]
[1763441298325,10.06604048,134.33,134.27,9.36604048]
[1763441298740,0.65,134.32,134.27,9.36604048]
[1763441298927,19.15486817,134.31,134.15,0.74543421]
[1763441299248,27.90978769,134.31,134.22,9.36604048]
[1763441299449,27.90978769,134.31,134.26,9.36604048]
[1763441299450,18.12096,134.31,134.26,9.36604048]
[1763441299620,0.65,134.3,134.27,9.36604048]
[1763441299820,0.65,134.3,134.26,9.36604048]
[1763441300347,0.65,134.34,134.29,9.36604048]
[1763441300748,0.65,134.34,134.3,9.36604048]
[1763441300946,0.65,134.38,134.33,9.36604048]
[1763441301166,0.65,134.38,134.35,9.36604048]
[1763441301324,0.65,134.42,134.37,9.36604048]
[1763441301632,10.01604048,134.4,134.34,9.36604048]
[1763441301832,0.75,134.44,134.38,9.36604048]
[1763441302046,0.75,134.44,134.38,19.15486817]
[1763441302256,0.1,134.44,134.38,19.29702974]
[1763441302463,0.1,134.44,134.42,27.90978769]
[1763441302753,0.75,134.44,134.34,18.12096]
[1763441302954,0.1,134.44,134.4,9.36604048]
[1763441303156,0.1,134.44,134.41,9.36604048]
[1763441303374,0.1,134.44,134.32,18.12096]
[1763441303533,0.1,134.44,134.39,9.36604048]
[1763441303734,9.36604048,134.41,134.36,18.12096]
[1763441303955,27.90978769,134.41,134.34,9.36604048]
[1763441304150,9.36604048,134.39,134.33,18.12096]
[1763441304353,0.75,134.44,134.38,9.36604048]
[1763441304557,0.1,134.44,134.41,0.14216157]
[1763441304737,9.46604048,134.44,134.4,18.12096]
[1763441305061,19.15486817,134.43,134.33,0.14216157]
[1763441305267,0.65,134.43,134.39,9.36604048]
[1763441305562,0.65,134.43,134.4,9.36604048]
[1763441305761,0.65,134.43,134.05,7.45985823]
[1763441305762,19.15486817,134.41,134.29,0.14216157]
[1763441305967,0.65,134.42,134.26,32.97365116]
[1763441306258,28.13700048,134.42,134.37,9.36604048]
[1763441306460,0.1,134.44,134.39,9.36604048]
[1763441306978,0.75,134.44,134.41,9.36604048]
[1763441307161,0.75,134.44,134.28,59.78004144]
[1763441307162,18.12096,134.37,134.3,9.36604048]
[1763441307335,9.36604048,134.34,134.17,33.55992914]
[1763441307552,27.90978769,134.37,134.11,0.74565655]
[1763441307553,9.36604048,134.28,134.11,0.74565655]
[1763441307791,18.12096,134.29,134.22,9.36604048]
[1763441307985,9.36604048,134.27,134.21,9.36604048]
[1763441308153,0.65,134.28,134.21,9.36604048]
[1763441308355,9.36604048,134.26,134.21,9.36604048]
[1763441308782,0.65,134.3,134.23,9.36604048]
[1763441309090,9.36604048,134.25,134.2,9.36604048]
[1763441309256,9.36604048,134.25,134.11,0.74565655]
[1763441309257,9.36604048,134.25,134.19,9.36604048]
[1763441309480,9.36604048,134.23,134.17,9.36604048]
[1763441309875,9.36604048,134.22,134.17,9.36604048]
[1763441310083,0.65,134.23,134.18,9.36604048]
[1763441310264,18.12096,134.25,134.19,9.36604048]
[1763441310265,28.13700048,134.25,134.19,9.36604048]
[1763441310784,28.13700048,134.25,134.16,9.78882769]
[1763441310785,10.01604048,134.24,134.18,9.36604048]
[1763441311281,9.36604048,134.21,134.06,0.21324235]
[1763441311600,0.65,134.32,134.24,9.78882769]
[1763441311884,2.0,134.43,134.24,9.78882769]
[1763441311885,10.01604048,134.36,134.3,9.36604048]
[1763441312058,9.36604048,134.35,134.29,9.36604048]
[1763441312256,10.01604048,134.35,134.29,18.12096]
[1763441312456,10.01604048,134.35,134.28,0.14216157]
[1763441312457,0.65,134.35,134.3,9.36604048]
[1763441312664,10.01604048,134.34,134.29,18.12096]
[1763441312959,9.36604048,134.32,134.26,9.36604048]
[1763441313263,9.36604048,134.32,134.06,0.21324235]
[1763441313264,9.36604048,134.3,134.25,18.12096]
[1763441313458,9.36604048,134.3,134.27,9.36604048]
[1763441313459,0.65,134.3,134.27,9.36604048]
[1763441313862,0.65,134.3,134.26,0.14216157]
[1763441313863,10.01604048,134.33,134.28,9.36604048]
[1763441314058,0.65,134.32,134.27,9.36604048]
[1763441314600,37.87121132,134.46,134.25,18.12096]
[1763441314601,0.65,134.37,134.31,9.36604048]
[1763441314764,0.65,134.4,134.36,10.24203453]
[1763441314961,0.65,134.4,134.37,10.24203453]
[1763441315885,10.89203453,134.43,134.36,18.12096]
[1763441316293,0.65,134.42,134.37,10.24203453]
[1763441316466,0.65,134.42,134.38,10.24203453]
[1763441316784,0.1,134.44,134.4,10.24203453]
[1763441317085,0.75,134.44,134.4,10.24203453]
[1763441317270,0.75,134.44,134.31,0.74454619]
[1763441317271,10.24203453,134.43,134.32,9.78882769]
[1763441317466,9.78882769,134.43,134.37,10.24203453]
[1763441317678,9.78882769,134.43,134.35,18.12096]
[1763441317679,10.24203453,134.41,134.36,10.24203453]
[1763441317985,10.24203453,134.38,134.33,10.24203453]
[1763441318388,0.65,134.37,134.33,10.24203453]
[1763441318571,10.24203453,134.36,134.31,10.24203453]
[1763441318775,0.65,134.41,134.35,10.24203453]
[1763441318984,28.05194926,134.42,134.35,10.24203453]
[1763441318985,0.65,134.39,134.35,10.24203453]
[1763441319380,0.65,134.39,134.36,10.24203453]
[1763441319584,10.24203453,134.42,134.37,10.24203453]
[1763441319783,10.89203453,134.42,134.37,10.24203453]
[1763441319992,0.65,134.42,134.38,10.24203453]
[1763441320289,0.65,134.42,134.37,0.14216157]
[1763441320599,0.1,134.44,134.37,0.14216157]
[1763441320895,0.75,134.44,134.37,0.14216157]
[1763441321099,0.75,134.44,134.37,9.93098926]
[1763441321100,0.1,134.44,134.37,9.93098926]
[1763441321397,0.1,134.44,134.41,0.14216157]
[1763441321587,0.1,134.44,134.43,10.24203453]
[1763441321773,0.1,134.44,134.43,10.3841961]
[1763441322361,0.1,134.44,134.42,18.12096]
[1763441322560,0.8,134.44,134.41,10.24203453]
[1763441322766,0.8,134.44,134.4,10.24203453]
[1763441322997,0.1,134.44,134.42,18.12096]
[1763441323198,0.1,134.44,134.43,20.17302379]
[1763441323494,0.1,134.44,134.43,10.3841961]
[1763441323871,0.1,134.44,134.43,20.17302379]
[1763441324691,0.1,134.49,134.47,27.90978769]
[1763441324893,0.1,134.51,134.5,27.90978769]
[1763441325095,0.1,134.51,134.5,38.29398379]
[1763441325285,0.1,134.51,134.46,0.14216157]
[1763441325474,0.1,134.51,134.5,10.24203453]
[1763441325782,0.1,134.51,134.5,20.17302379]
[1763441325984,0.1,134.51,134.5,0.14216157]
[1763441326299,0.1,134.51,134.5,20.17302379]
[1763441326692,0.1,134.51,134.5,10.3841961]
[1763441326893,0.1,134.51,134.5,10.24203453]
[1763441327096,0.1,134.51,134.5,20.17302379]
[1763441327471,0.1,134.52,134.5,20.17302379]
[1763441327472,0.1,134.52,134.51,9.93098926]
[1763441327676,0.1,134.52,134.51,20.17302379]
[1763441328487,0.7,134.65,134.59,9.78882769]
[1763441328682,0.7,134.65,134.6,0.14216157]
[1763441328880,0.7,134.65,134.62,10.24203453]
[1763441329090,0.7,134.65,134.63,10.24203453]
[1763441329286,0.7,134.65,134.51,18.12096]
[1763441329494,0.7,134.65,134.61,10.24203453]
[1763441329802,0.7,134.65,134.63,10.24203453]
[1763441329975,0.7,134.65,134.61,18.12096]
[1763441330470,0.7,134.65,134.62,10.24203453]
[1763441330671,0.7,134.7,134.64,28.36299453]
[1763441330876,0.7,134.81,134.69,10.24203453]
[1763441331102,0.7,134.8,134.74,10.24203453]
[1763441331278,10.94203453,134.8,134.71,18.12096]
[1763441331481,18.12096,134.79,134.71,18.12096]
[1763441331698,18.12096,134.78,134.71,10.24203453]
[1763441331906,29.06299453,134.78,134.72,10.24203453]
[1763441332208,10.94203453,134.77,134.68,0.14216157]
[1763441332379,0.7,134.77,134.68,9.93098926]
[1763441332580,10.94203453,134.76,134.68,0.14216157]
[1763441332789,10.94203453,134.76,134.71,10.24203453]
[1763441333001,0.7,134.75,134.68,0.14216157]
[1763441333177,0.7,134.75,134.68,9.93098926]
[1763441333733,0.2,134.79,134.74,10.24203453]
[1763441333907,0.9,134.79,134.73,0.14216157]
[1763441334202,0.9,134.79,134.57,4.88]
[1763441334203,27.90978769,134.77,134.57,4.88]
[1763441334408,27.90978769,134.76,134.58,9.78882769]
[1763441334615,27.90978769,134.76,134.72,10.24203453]
[1763441334616,0.7,134.76,134.72,10.24203453]
[1763441334785,0.7,134.76,134.73,10.24203453]
[1763441334993,0.7,134.76,134.74,10.24203453]
[1763441335287,0.9,134.79,134.75,10.24203453]
[1763441335601,0.2,134.79,134.78,10.24203453]
[1763441335772,0.2,134.79,134.78,10.3841961]
[1763441336171,0.9,134.79,134.76,18.12096]
[1763441336375,0.9,134.79,134.76,10.24203453]
[1763441336604,0.7,134.78,134.75,10.24203453]
[1763441336808,0.7,134.78,134.74,10.24203453]
[1763441337195,0.7,134.78,134.75,10.24203453]
[1763441337406,0.2,134.79,134.77,10.24203453]
[1763441337620,0.2,134.79,134.78,10.24203453]
[1763441337819,0.2,134.79,134.78,20.17302379]
[1763441340027,0.2,134.79,134.78,9.93098926]
[1763441340326,0.2,134.79,134.78,20.17302379]
[1763441340903,0.2,134.79,134.78,10.24203453]
[1763441341108,0.2,134.79,134.78,20.03086222]
[1763441341311,0.2,134.79,134.78,9.93098926]
[1763441341538,0.2,134.79,134.78,20.17302379]
[1763441341742,0.2,134.79,134.78,38.29398379]
[1763441342120,0.9,134.79,134.65,0.74266617]
[1763441342436,10.24203453,134.78,134.73,10.24203453]
[1763441342737,10.24203453,134.77,134.71,10.24203453]
[1763441342908,10.24203453,134.74,134.6,0.74294205]
[1763441343103,28.25194926,134.79,134.66,10.24203453]
[1763441343104,10.24203453,134.72,134.66,10.24203453]
[1763441343432,18.12096,134.73,134.54,0.74327337]
[1763441343433,10.24203453,134.69,134.54,0.74327337]
[1763441343601,18.12096,134.7,134.63,10.24203453]
[1763441343602,10.24203453,134.68,134.63,10.24203453]
[1763441344021,0.7,134.67,134.64,10.24203453]
[1763441344332,10.24203453,134.81,134.66,10.24203453]
[1763441344333,0.14216157,134.8,134.66,10.24203453]
[1763441344543,0.7,134.74,134.7,18.26312157]
[1763441344715,0.2,134.78,134.73,10.24203453]
[1763441345032,16.20542371,134.98,134.77,10.24203453]
[1763441345033,10.24203453,134.86,134.77,10.24203453]
[1763441345235,2.0,134.91,134.78,10.24203453]
[1763441345447,2.0,134.93,134.78,10.3841961]
[1763441345610,10.24203453,134.87,134.78,10.3841961]
[1763441345806,10.24203453,134.88,134.78,20.17302379]
[1763441346137,10.24203453,134.98,134.78,20.17302379]
[1763441346138,10.24203453,134.89,134.78,20.17302379]
[1763441346635,18.12096,134.95,134.78,20.17302379]
[1763441346636,0.7,134.84,134.78,20.17302379]
[1763441346849,18.12096,134.87,134.77,18.12096]
[1763441347033,2.63593088,134.82,134.78,28.5051561]
[1763441347339,1.93593088,134.82,134.78,38.29398379]
[1763441347765,0.7,134.81,134.78,28.5051561]
[1763441348048,2.63593088,134.82,134.78,18.12096]
[1763441348229,2.63593088,134.82,134.78,28.36299453]
[1763441348438,2.63593088,134.82,134.78,38.29398379]
[1763441348638,1.93593088,134.82,134.81,18.12096]
[1763441348936,1.62593088,134.82,134.81,38.29398379]
[1763441349144,1.62593088,134.82,134.81,20.17302379]
[1763441349340,2.32593088,134.82,134.68,4.84]
[1763441349543,2.32593088,134.82,134.69,9.93098926]
[1763441349842,2.32593088,134.82,134.81,10.24203453]
[1763441350048,1.62593088,134.82,134.81,20.17302379]
[1763441350220,0.7,134.92,134.82,9.93098926]
[1763441350419,0.7,134.92,134.82,10.67271897]
[1763441350638,0.7,134.92,134.86,10.24203453]
[1763441350639,10.94203453,134.92,134.86,10.24203453]
[1763441350843,0.7,134.92,134.85,10.24203453]
[1763441351066,10.24203453,134.9,134.84,10.24203453]
[1763441351347,10.24203453,134.85,134.67,0.21324235]
[1763441351546,28.36299453,134.87,134.81,10.24203453]
[1763441351725,0.7,134.86,134.82,10.24203453]
[1763441351916,10.24203453,134.83,134.67,0.21324235]
[1763441352114,10.24203453,134.83,134.75,10.24203453]
[1763441352115,10.24203453,134.81,134.75,10.24203453]
[1763441352319,18.12096,134.78,134.61,0.74288685]
[1763441352549,10.24203453,134.76,134.7,10.24203453]
[1763441352747,0.67,134.77,134.61,0.74288685]
[1763441352926,0.67,134.77,134.76,10.24203453]
[1763441353120,0.67,134.77,134.64,10.24203453]
[1763441353345,0.67,134.77,134.72,10.24203453]
[1763441353546,0.67,134.77,134.75,10.24203453]
[1763441353727,0.67,134.77,134.73,10.24203453]
[1763441353930,0.67,134.77,134.72,10.24203453]
[1763441354122,0.67,134.77,134.71,10.24203453]
[1763441354323,10.24203453,134.76,134.7,10.24203453]
[1763441354552,0.67,134.75,134.7,10.24203453]
[1763441354736,0.67,134.75,134.71,10.24203453]
[1763441354933,0.67,134.75,134.59,0.74299725]
[1763441355141,9.78882769,134.72,134.59,0.74299725]
[1763441355435,9.78882769,134.72,134.56,0.1]
[1763441355436,0.67,134.75,134.69,10.24203453]
[1763441355641,70.96638225,134.86,134.6,0.74294205]
[1763441355642,0.67,134.74,134.65,0.14216157]
[1763441355850,0.67,134.74,134.7,10.24203453]
[1763441356348,0.67,134.74,134.67,18.26312157]
[1763441356546,0.67,134.74,134.73,10.24203453]
[1763441357622,0.67,134.74,134.68,0.14216157]
[1763441357623,0.67,134.74,134.7,10.24203453]
[1763441357959,0.67,134.74,134.59,0.66]
[1763441357960,10.24203453,134.73,134.59,0.66]
[1763441358124,0.67,134.74,134.59,0.66]
[1763441358125,10.24203453,134.72,134.66,10.24203453]
[1763441358325,0.67,134.73,134.7,10.24203453]
[1763441358962,0.67,134.73,134.69,10.24203453]
[1763441359162,0.67,134.73,134.7,10.24203453]
[1763441359528,0.67,134.73,134.69,10.24203453]
[1763441359841,0.67,134.73,134.71,10.24203453]
[1763441360035,0.67,134.73,134.7,10.24203453]
[1763441360237,0.67,134.73,134.65,0.14216157]
[1763441360561,10.41203453,134.73,134.6,0.67]
[1763441360735,28.36299453,134.73,134.67,10.24203453]
[1763441360940,10.24203453,134.74,134.69,10.24203453]
[1763441361148,18.12096,134.75,134.7,10.24203453]
[1763441361355,9.78882769,134.81,134.72,10.24203453]
[1763441361530,38.01383506,134.93,134.73,10.24203453]
[1763441361531,10.24203453,134.78,134.73,10.24203453]
[1763441361729,10.24203453,134.8,134.74,10.24203453]
[1763441361929,10.24203453,134.81,134.76,10.24203453]
[1763441362136,10.24203453,134.79,134.74,10.24203453]
[1763441362541,18.12096,134.82,134.72,10.24203453]
[1763441362542,10.94203453,134.78,134.72,10.24203453]
[1763441362748,0.7,134.78,134.72,10.24203453]
[1763441363064,10.24203453,134.76,134.71,10.24203453]
[1763441363362,0.7,134.77,134.72,10.24203453]
[1763441363363,10.94203453,134.77,134.72,10.24203453]
[1763441363528,18.12096,134.78,134.67,18.12096]
[1763441363529,0.7,134.76,134.67,18.12096]
[1763441363751,0.7,134.76,134.74,10.24203453]
[1763441363929,0.7,134.76,134.69,0.14216157]
[1763441364262,0.7,134.76,134.67,18.12096]
[1763441364570,0.7,134.76,134.71,10.24203453]
[1763441364735,10.94203453,134.76,134.71,10.24203453]
[1763441365137,0.7,134.75,134.71,10.24203453]
[1763441365643,0.7,134.75,134.7,10.24203453]
[1763441365852,0.7,134.75,134.71,10.24203453]
[1763441367551,18.82096,134.75,134.71,10.24203453]
[1763441367754,10.24203453,134.74,134.69,10.24203453]
[1763441367960,10.24203453,134.73,134.67,10.24203453]
[1763441368157,10.24203453,134.69,134.59,0.67]
[1763441368360,10.24203453,134.68,134.62,10.24203453]
[1763441368742,10.94203453,134.67,134.62,10.24203453]
[1763441368964,10.24203453,134.65,134.56,0.1]
[1763441369340,10.24203453,134.63,134.58,10.24203453]
[1763441369550,0.7,134.62,134.56,0.1]
[1763441369757,10.94203453,134.62,134.57,10.24203453]
[1763441369962,0.7,134.62,134.57,10.24203453]
[1763441370146,0.7,134.61,134.57,10.24203453]
[1763441370350,10.94203453,134.61,134.56,10.34203453]
[1763441370551,0.7,134.61,134.56,10.34203453]
[1763441370889,0.7,134.61,134.58,10.24203453]
[1763441371040,0.7,134.61,134.59,10.24203453]
[1763441371250,0.7,134.61,134.58,10.24203453]
[1763441371444,0.7,134.61,134.59,10.24203453]
[1763441372170,0.7,134.61,134.56,0.1]
[1763441372339,10.94203453,134.61,134.56,0.1]
[1763441372540,10.24203453,134.6,134.56,0.1]
[1763441372767,10.24203453,134.58,134.56,0.1]
[1763441373143,10.94203453,134.57,134.44,0.67]
[1763441373366,18.82096,134.57,134.47,10.24203453]
[1763441373543,10.24203453,134.52,134.42,0.67]
[1763441373745,0.7,134.56,134.49,10.24203453]
[1763441373947,10.94203453,134.55,134.49,10.24203453]
[1763441374260,0.7,134.55,134.5,10.24203453]
[1763441374474,0.7,134.55,134.51,10.24203453]
[1763441374676,0.7,134.55,134.52,10.24203453]
[1763441374841,10.94203453,134.59,134.54,10.24203453]
[1763441375043,0.7,134.59,134.56,10.24203453]
[1763441375245,0.7,134.61,134.57,10.24203453]
[1763441375673,10.24203453,134.6,134.52,0.14216157]
[1763441375847,10.24203453,134.6,134.55,10.24203453]
[1763441376047,0.7,134.59,134.55,10.24203453]
[1763441376647,0.7,134.59,134.52,18.26312157]
[1763441376846,0.7,134.59,134.54,9.32064119]
[1763441377168,0.7,134.59,134.56,9.32064119]
[1763441377361,0.7,134.59,134.54,9.32064119]
[1763441377664,10.02064119,134.59,134.53,9.32064119]
[1763441377969,9.32064119,134.58,134.52,9.32064119]
[1763441378147,10.02064119,134.58,134.52,9.32064119]
[1763441378342,0.7,134.57,134.53,9.32064119]
[1763441378687,0.7,134.57,134.5,9.32064119]
[1763441378688,9.32064119,134.56,134.5,9.32064119]
[1763441378855,10.02064119,134.57,134.51,9.32064119]
[1763441379052,0.7,134.56,134.51,9.32064119]
[1763441379269,10.02064119,134.56,134.47,18.12096]
[1763441379452,0.7,134.56,134.52,9.32064119]
[1763441379769,0.7,134.56,134.53,9.32064119]
[1763441379945,0.7,134.56,134.49,0.14216157]
[1763441380145,0.7,134.56,134.52,9.32064119]
[1763441381169,10.02064119,134.56,134.5,9.32064119]
[1763441381554,0.7,134.55,134.52,9.32064119]
[1763441382462,0.7,134.59,134.54,9.32064119]
[1763441382772,9.32064119,134.61,134.55,9.32064119]
[1763441382970,0.7,134.58,134.56,9.32064119]
[1763441383546,27.44160119,134.62,134.57,9.32064119]
[1763441383547,0.7,134.62,134.57,9.32064119]
[1763441383766,0.7,134.61,134.54,0.14216157]
[1763441383968,0.7,134.61,134.59,9.32064119]
[1763441384174,0.7,134.61,134.58,9.32064119]
[1763441384372,0.7,134.61,134.57,9.32064119]
[1763441384578,0.7,134.61,134.56,9.32064119]
[1763441384579,10.02064119,134.61,134.56,9.32064119]
[1763441384783,0.7,134.61,134.57,5.67869779]
[1763441385078,5.67869779,134.63,134.59,5.67869779]
[1763441385079,0.7,134.63,134.59,5.67869779]
[1763441385474,0.7,134.63,134.6,5.67869779]
[1763441385793,5.67869779,134.67,134.61,5.67869779]
[1763441385963,60.09560419,134.8,134.65,5.67869779]
[1763441385964,0.7,134.71,134.65,5.67869779]
[1763441386151,5.67869779,134.7,134.65,5.67869779]
[1763441386350,5.67869779,134.69,134.63,5.67869779]
[1763441386549,5.67869779,134.69,134.6,0.14216157]
[1763441386550,5.87869779,134.68,134.6,0.14216157]
[1763441386775,0.7,134.68,134.63,5.67869779]
[1763441387086,5.67869779,134.69,134.64,5.67869779]
[1763441387390,0.7,134.67,134.63,5.67869779]
[1763441387591,0.7,134.67,134.62,5.67869779]
[1763441387761,6.37869779,134.67,134.58,18.12096]
[1763441387959,6.37869779,134.66,134.6,5.67869779]
[1763441388260,6.37869779,134.66,134.61,5.67869779]
[1763441388467,0.7,134.65,134.61,5.67869779]
[1763441388859,0.7,134.65,134.62,5.67869779]
[1763441389275,18.12096,134.69,134.62,5.67869779]
[1763441389494,2.0,134.74,134.66,5.67869779]
[1763441389495,0.7,134.7,134.66,5.67869779]
[1763441389781,5.67869779,134.71,134.62,0.68]
[1763441389974,0.7,134.7,134.65,5.67869779]
[1763441390175,5.67869779,134.69,134.63,5.67869779]
[1763441390373,6.37869779,134.7,134.64,5.67869779]
[1763441390574,5.67869779,134.68,134.62,5.67869779]
[1763441390780,6.37869779,134.68,134.62,5.67869779]
[1763441391273,0.7,134.68,134.62,5.67869779]
[1763441391482,6.37869779,134.68,134.63,5.67869779]
[1763441391686,0.7,134.68,134.64,5.67869779]
[1763441391890,0.7,134.68,134.63,5.67869779]
[1763441392083,6.37869779,134.68,134.63,5.67869779]
[1763441392273,0.7,134.68,134.63,5.67869779]
[1763441392474,0.7,134.67,134.64,5.67869779]
[1763441393163,0.7,134.67,134.63,5.67869779]
[1763441393358,0.7,134.7,134.64,5.67869779]
[1763441393554,5.67869779,134.69,134.64,5.67869779]
[1763441393755,5.67869779,134.69,134.57,9.78882769]
[1763441393756,5.67869779,134.66,134.58,18.80096]
[1763441393991,9.78882769,134.68,134.6,5.67869779]
[1763441394186,5.67869779,134.65,134.6,5.67869779]
[1763441394374,5.67869779,134.65,134.58,0.68]
[1763441394375,5.67869779,134.65,134.59,5.67869779]
[1763441394568,0.7,134.64,134.59,5.67869779]
[1763441394770,5.67869779,134.65,134.6,5.67869779]
[1763441395082,0.7,134.65,134.61,5.67869779]
[1763441395485,0.7,134.65,134.6,5.67869779]
[1763441395686,0.7,134.65,134.61,5.67869779]
[1763441395981,5.67869779,134.67,134.61,6.35869779]
[1763441396375,2.0,134.78,134.64,5.67869779]
[1763441396576,5.67869779,134.7,134.65,5.67869779]
[1763441396884,5.67869779,134.71,134.66,5.67869779]
[1763441397266,9.78882769,134.76,134.66,5.67869779]
[1763441397267,5.67869779,134.72,134.66,5.67869779]
[1763441397599,5.67869779,134.72,134.67,5.67869779]
[1763441397765,5.67869779,134.73,134.67,5.67869779]
[1763441397967,7.67869779,134.8,134.68,5.67869779]
[1763441397968,6.37869779,134.74,134.68,5.67869779]
[1763441398371,5.67869779,134.73,134.68,5.67869779]
[1763441398675,6.37869779,134.74,134.68,5.67869779]
[1763441398999,0.7,134.74,134.68,5.67869779]
[1763441399172,6.37869779,134.74,134.69,5.67869779]
[1763441399366,6.37869779,134.74,134.61,9.78882769]
[1763441399367,5.67869779,134.71,134.61,9.78882769]
[1763441399594,0.7,134.72,134.66,5.67869779]
[1763441399801,6.37869779,134.72,134.66,5.67869779]
[1763441400091,5.67869779,134.71,134.66,5.67869779]
[1763441400298,5.67869779,134.73,134.68,5.67869779]
[1763441400495,5.67869779,134.73,134.66,0.68]
[1763441400793,5.67869779,134.7,134.63,0.14216157]
[1763441400980,0.7,134.72,134.65,5.67869779]
[1763441400981,5.67869779,134.71,134.65,5.67869779]
[1763441401176,5.67869779,134.7,134.65,5.67869779]
[1763441401387,6.37869779,134.71,134.64,0.68]
[1763441401570,0.7,134.71,134.65,5.67869779]
[1763441401897,0.7,134.71,134.66,5.67869779]
[1763441402208,5.67869779,134.67,134.58,9.78882769]
[1763441402378,5.67869779,134.68,134.62,5.67869779]
[1763441402570,5.67869779,134.65,134.6,5.67869779]
[1763441402912,5.67869779,134.62,134.57,5.67869779]
[1763441403090,5.67869779,134.61,134.56,5.67869779]
[1763441403404,0.7,134.69,134.6,5.67869779]
[1763441403712,5.67869779,134.65,134.58,18.26312157]
[1763441403872,5.67869779,134.66,134.58,0.14216157]
[1763441404194,5.67869779,134.67,134.61,5.67869779]
[1763441404368,5.67869779,134.72,134.63,5.67869779]
[1763441404567,5.67869779,134.69,134.63,5.67869779]
[1763441405295,0.7,134.7,134.65,5.67869779]
[1763441405296,6.37869779,134.7,134.65,5.67869779]
[1763441405511,6.37869779,134.7,134.61,0.14216157]
[1763441405512,5.67869779,134.69,134.63,5.67869779]
[1763441405686,5.67869779,134.68,134.59,0.68]
[1763441405882,6.37869779,134.68,134.62,5.67869779]
[1763441406079,6.37869779,134.67,134.61,5.67869779]
[1763441406402,0.7,134.7,134.64,5.67869779]
[1763441406568,0.7,134.7,134.6,18.26312157]
[1763441406569,5.67869779,134.71,134.65,5.67869779]
[1763441406968,6.37869779,134.71,134.65,5.67869779]